fUST/lending_fUST_20250518
["ID","MTS","AMOUNT","RATE_DAILY","PERIOD"]
[361410373,1747558245420,-1229.71,0.00016849,2]
[361410375,1747558245429,-151.0,0.00017,2]
[361410377,1747558245439,-13062.42516927,0.00017038,2]
[361410379,1747558245448,-151.0,0.000171,2]
[361410381,1747558245459,-13062.42516927,0.00017452,2]
[361410383,1747558245468,-151.0,0.000176,2]
[361410385,1747558245480,-151.0,0.000176,2]
[361410386,1747558245492,-1965.7906692,0.00017717,2]
[361410387,1747558245502,-653.00730596,0.00017747,2]
[361410388,1747558245511,-151.0,0.000178,2]
[361410390,1747558245520,-321.0,0.00017808,2]
[361410392,1747558245530,-212.363048,0.00017808,2]
[361410394,1747558245539,-151.0,0.00017808,2]
[361410396,1747558245548,-151.0,0.00017808,2]
[361410398,1747558245557,-177.593286,0.00017808,2]
[361410400,1747558245567,-151.0,0.00017808,2]
[361410402,1747558245576,-151.0,0.00017808,2]
[361410404,1747558245585,-151.0,0.00017808,2]
[361410405,1747558245595,-151.0,0.00017808,2]
[361410407,1747558245605,-1500.0,0.00017808,7]
[361410409,1747558245614,-1500.0,0.00017808,7]
[361410412,1747558245624,-1500.0,0.00017808,7]
[361410413,1747558245634,-1500.0,0.00017808,7]
[361410415,1747558245643,-1500.0,0.00017808,7]
[361410417,1747558245653,-1500.0,0.00017808,7]
[361410419,1747558245662,-1500.0,0.00017808,7]
[361410421,1747558245671,-1500.0,0.00017808,7]
[361410423,1747558245681,-1500.0,0.00017808,7]
[361410425,1747558245690,-1500.0,0.00017808,7]
[361410427,1747558245700,-1500.0,0.00017808,7]
[361410429,1747558245714,-1500.0,0.00017808,7]
[361410431,1747558245724,-1500.0,0.00017808,7]
[361410433,1747558245733,-1500.0,0.00017808,7]
[361410435,1747558245743,-1500.0,0.00017808,7]
[361410437,1747558245753,-1500.0,0.00017808,7]
[361410439,1747558245762,-1500.0,0.00017808,7]
[361410441,1747558245771,-1500.0,0.00017808,7]
[361410443,1747558245781,-1500.0,0.00017808,7]
[361410445,1747558245790,-1500.0,0.00017808,7]
[361410447,1747558245799,-1500.0,0.00017808,7]
[361410448,1747558245809,-1500.0,0.00017808,7]
[361410450,1747558245818,-1500.0,0.00017808,7]
[361410452,1747558245827,-1500.0,0.00017808,7]
[361410454,1747558245836,-1500.0,0.00017808,7]
[361410455,1747558245846,-1500.0,0.00017808,7]
[361410457,1747558245855,-1500.0,0.00017808,7]
[361410459,1747558245864,-1500.0,0.00017808,7]
[361410461,1747558245873,-1500.0,0.00017808,7]
[361410463,1747558245883,-1500.0,0.00017808,7]
[361410465,1747558245893,-1500.0,0.00017808,7]
[361410467,1747558245902,-1500.0,0.00017808,7]
[361410469,1747558245912,-1500.0,0.00017808,7]
[361410471,1747558245922,-1500.0,0.00017808,7]
[361410473,1747558245931,-1500.0,0.00017808,7]
[361410475,1747558245942,-1500.0,0.00017808,7]
[361410477,1747558245952,-1500.0,0.00017808,7]
[361410479,1747558245961,-1500.0,0.00017808,7]
[361410481,1747558245971,-1500.0,0.00017808,7]
[361410483,1747558245981,-1500.0,0.00017808,7]
[361410485,1747558245990,-1500.0,0.00017808,7]
[361410487,1747558245999,-1500.0,0.00017808,7]
[361410489,1747558246008,-1500.0,0.00017808,7]
[361410491,1747558246017,-1500.0,0.00017808,7]
[361410493,1747558246026,-1500.0,0.00017808,7]
[361410495,1747558246036,-1500.0,0.00017808,7]
[361410497,1747558246045,-1500.0,0.00017808,7]
[361410499,1747558246055,-1500.0,0.00017808,7]
[361410501,1747558246065,-1500.0,0.00017808,7]
[361410503,1747558246074,-1500.0,0.00017808,7]
[361410505,1747558246084,-1500.0,0.00017808,7]
[361410508,1747558246094,-1500.0,0.00017808,7]
[361410510,1747558246103,-1500.0,0.00017808,7]
[361410512,1747558246113,-1500.0,0.00017808,7]
[361410514,1747558246122,-1500.0,0.00017808,7]
[361410515,1747558246132,-1500.0,0.00017808,7]
[361410516,1747558246141,-1500.0,0.00017808,7]
[361410517,1747558246150,-1500.0,0.00017808,7]
[361410518,1747558246160,-1500.0,0.00017808,7]
[361410519,1747558246169,-1500.0,0.00017808,7]
[361410520,1747558246178,-1500.0,0.00017808,7]
[361410521,1747558246187,-1500.0,0.00017808,7]
[361410522,1747558246196,-1500.0,0.00017808,7]
[361410523,1747558246205,-1500.0,0.00017808,7]
[361410524,1747558246214,-1500.0,0.00017808,7]
[361410525,1747558246223,-1500.0,0.00017808,7]
[361410526,1747558246232,-1500.0,0.00017808,7]
[361410527,1747558246240,-1500.0,0.00017808,7]
[361410528,1747558246250,-1500.0,0.00017808,7]
[361410529,1747558246259,-1500.0,0.00017808,7]
[361410530,1747558246268,-1500.0,0.00017808,7]
[361410531,1747558246277,-1500.0,0.00017808,7]
[361410532,1747558246286,-1500.0,0.00017808,7]
[361410533,1747558246296,-1500.0,0.00017808,7]
[361410534,1747558246306,-1500.0,0.00017808,7]
[361410535,1747558246316,-1500.0,0.00017808,7]
[361410536,1747558246325,-1500.0,0.00017808,7]
[361410537,1747558246334,-1500.0,0.00017808,7]
[361410538,1747558246343,-864.535899,0.00017808,7]
[361410539,1747558246352,-13062.42516927,0.00017866,2]
[361410540,1747558246360,-307.10471333,0.00017906,2]
[361410541,1747558246370,-155.573528,0.00017952,7]
[361410542,1747558246379,-1000.0,0.00018,18]
[361410543,1747558246388,-155.573528,0.00018,7]
[361410544,1747558246397,-500.0,0.00018,3]
[361410545,1747558246406,-156.933471,0.00018,7]
[361410546,1747558246415,-500.0,0.00018,4]
[361410547,1747558246424,-151.0,0.000182,2]
[361410548,1747558246432,-151.0,0.000182,2]
[361410549,1747558246442,-151.0,0.000182,2]
[361410550,1747558246451,-13062.42516927,0.00018279,2]
[361410552,1747558246460,-160.0,0.00018288,3]
[361410553,1747558246469,-155.573528,0.00018497,3]
[361410554,1747558246478,-500.0,0.000185,3]
[361410555,1747558246487,-546.0,0.00018591,2]
[361410556,1747558246497,-404.0,0.00018591,2]
[361410558,1747558246506,-151.0,0.000186,2]
[361410560,1747558246515,-13062.42516927,0.00018693,2]
[361410562,1747558246525,-151.0,0.000187,2]
[361410564,1747558246534,-3000.0,0.00018716,2]
[361410566,1747558246543,-151.0,0.00018716,2]
[361410568,1747558246552,-1000.0,0.000188,2]
[361410570,1747558246561,-151.0,0.000188,2]
[361410572,1747558246570,-194.51,0.00019,4]
[361410574,1747558246579,-151.0,0.00019,2]
[361410576,1747558246588,-1000.0,0.00019,2]
[361410578,1747558246597,-500.0,0.00019,5]
[361410580,1747558246606,-600.0,0.00019104,2]
[361410582,1747558246615,-13062.42516927,0.00019107,2]
[361410584,1747558246625,-160.0,0.00019172,4]
[361410586,1747558246634,-327.01645869,0.00019177,4]
[361410588,1747558246643,-151.0,0.00019178,2]
[361410589,1747558246653,-1514.9127596,0.00019178,2]
[361410592,1747558246662,-155.0,0.00019178,2]
[361410594,1747558246671,-855.966526,0.00019178,2]
[361410595,1747558246681,-155.573528,0.00019202,2]
[361410597,1747558246690,-151.0,0.00019227,2]
[361410599,1747558246700,-1000.0,0.000193,3]
[361410602,1747558246713,-600.0,0.00019303,2]
[361410604,1747558246723,-160.44681971,0.00019326,2]
[361410605,1747558246734,-77519.26721952,0.00019327,2]
[361410662,1747558247256,-450.0,0.00013972,2]
[361410664,1747558247265,-160.0,0.00014051,2]
[361410666,1747558247274,-450.0,0.00014109,2]
[361410668,1747558247284,-579.62,0.00014931,2]
[361410670,1747558247293,-422.53311782,0.00015024,2]
[361410672,1747558247302,-298.64331689,0.00015068,2]
[361410706,1747558247625,-280.97668311,0.00015068,2]
[361410708,1747558247635,-304.15766821,0.00015205,2]
[361410817,1747558248681,-151.0,0.00013972,2]
[361410819,1747558248691,-151.0,0.00013972,2]
[361410821,1747558248701,-275.46233179,0.00015205,2]
[361410823,1747558248714,-579.62,0.00015342,2]
[361410825,1747558248724,-579.62,0.00015479,2]
[361410827,1747558248734,-579.62,0.00015616,2]
[361410829,1747558248744,-579.62,0.00015753,2]
[361410831,1747558248755,-579.62,0.0001589,2]
[361410833,1747558248764,-579.62,0.00016027,2]
[361410835,1747558248774,-579.62,0.00016164,2]
[361410837,1747558248784,-579.62,0.00016301,2]
[361410840,1747558248794,-579.62,0.00016438,2]
[361410841,1747558248804,-579.62,0.00016575,2]
[361410842,1747558248814,-579.62,0.00016712,2]
[361410843,1747558248823,-579.75,0.00016849,2]
[361410844,1747558248833,-1965.7906692,0.00017717,2]
[361410845,1747558248842,-500.0,0.000186,5]
[361410847,1747558248851,-6697.52401793,0.00019327,2]
[361411219,1747558333880,-154.538006,4.7e-07,2]
[361411220,1747558333902,-42.93107202,4.7e-07,2]
[361411221,1747558337426,-111.60693398,4.7e-07,2]
[361411222,1747558337448,-60.97608187,4.7e-07,2]
[361411223,1747558341236,-93.56192413,4.7e-07,2]
[361411224,1747558341257,-132.46036381,4.7e-07,2]
[361411225,1747558343516,-22.07764219,4.7e-07,2]
[361411226,1747558343536,-154.538006,4.7e-07,2]
[361411227,1747558343557,-17.238739,4.7e-07,2]
[361411228,1747558348632,-137.299267,4.7e-07,2]
[361411229,1747558348655,-31.40182338,9.449e-05,2]
[361411230,1747558350332,-222.8968145,9.449e-05,2]
[361411231,1747558353592,-182.90394334,9.449e-05,2]
[361411232,1747558355224,-67.37967497,9.449e-05,2]
[361411233,1747558355245,-89.07276463,0.0001154,2]
[361411234,1747558356800,-196.16315877,0.0001154,2]
[361411235,1747558360005,-64.78627294,0.0001154,2]
[361411240,1747558761565,-250.0,0.00012212,2]
[361411241,1747558761587,-5000.0,0.00012875,2]
[361411242,1747558761609,-1200.0,0.00013134,2]
[361411243,1747558761631,-180.0,0.00013134,2]
[361411244,1747558761652,-300.0,0.00013134,2]
[361411245,1747558761676,-500.0,0.00013135,2]
[361411246,1747558761700,-500.0,0.00013135,2]
[361411247,1747558761723,-398.73483523,0.00013135,2]
[361411248,1747558761745,-500.0,0.00013135,2]
[361411249,1747558761768,-483.94152722,0.00013135,2]
[361411250,1747558761788,-1473.32363755,0.00013136,2]
[361411260,1747558952532,259.51834729,0.00011923,2]
[361411261,1747558954109,-267.22938112,0.00011923,2]
[361411262,1747558957255,-213.3437845,0.00011923,2]
[361411263,1747558959368,-241.59257698,0.00011923,2]
[361411264,1747558961978,-167.12266569,0.00011923,2]
[361411265,1747558964319,-180.8793961,0.00011923,2]
[361411270,1747559140692,-169.31948789,0.00011803,2]
[361411271,1747559143308,-220.2730512,0.00011803,2]
[361411272,1747559145374,-173.94630546,0.00011803,2]
[361411273,1747559150053,-179.23776153,0.00011803,2]
[361411274,1747559153307,-323.76223847,0.00011803,2]
[361411275,1747559154817,-152.0,0.00011803,2]
[361411276,1747559158390,-363.23596201,0.00011803,2]
[361411277,1747559161036,-180.03912739,0.00011803,2]
[361411278,1747559163247,-165.53770473,0.00011803,2]
[361411293,1747559328229,-318.16803371,0.00011685,2]
[361411294,1747559329824,-269.84486432,0.00011685,2]
[361411295,1747559332646,-201.02194271,0.00011685,2]
[361411296,1747559335327,-246.81407492,0.00011685,2]
[361411297,1747559339082,-207.61470232,0.00011685,2]
[361411298,1747559340744,-400.0,0.00011685,2]
[361411299,1747559342684,-99.49859166,0.00011685,2]
[361411358,1747559432076,-336.33750721,0.00011969,2]
[361411359,1747559432086,-336.33750721,0.0001209,2]
[361411360,1747559432096,-300.0,0.00012327,2]
[361411361,1747559432106,-881.0,0.00012327,2]
[361411363,1747559432116,-19803.01435321,0.00012328,2]
[361411375,1747559432234,-4730.43503149,0.00012328,2]
[361411376,1747559432244,-500.0,0.00013135,2]
[361411377,1747559432254,-500.0,0.00013135,2]
[361411378,1747559432263,-500.0,0.00013135,2]
[361411379,1747559432274,-500.0,0.00013135,2]
[361411380,1747559432283,-500.0,0.00013135,2]
[361411381,1747559432293,-500.0,0.00013135,2]
[361411382,1747559432303,-96476.73484275,0.00013136,2]
[361411383,1747559432314,-211.16260148,0.00013139,2]
[361411385,1747559432323,-155.0,0.0001334,2]
[361411386,1747559432333,-240.0,0.00013528,2]
[361411387,1747559432343,-152.0,0.00013654,2]
[361411388,1747559432352,-500.0,0.00013697,2]
[361411389,1747559432362,-500.0,0.00013697,2]
[361411390,1747559432371,-500.0,0.00013697,2]
[361411391,1747559432381,-500.0,0.00013697,2]
[361411392,1747559432390,-640.57565439,0.00013697,2]
[361411393,1747559432400,-500.0,0.00013697,2]
[361411394,1747559432409,-500.0,0.00013697,2]
[361411395,1747559432419,-500.0,0.00013697,2]
[361411396,1747559432429,-500.0,0.00013697,2]
[361411397,1747559432439,-500.0,0.00013697,2]
[361411398,1747559432449,-500.0,0.00013697,2]
[361411399,1747559432458,-344.61466988,0.00013697,2]
[361411400,1747559432469,-500.0,0.00013697,2]
[361411401,1747559432479,-190.44140987,0.00013698,2]
[361411402,1747559432489,-450.0,0.00013698,2]
[361411403,1747559432499,-450.0,0.00013698,2]
[361411404,1747559432509,-450.0,0.00013698,2]
[361411405,1747559432519,-450.0,0.00013698,2]
[361411406,1747559432529,-450.0,0.00013698,2]
[361411407,1747559432539,-450.0,0.00013698,2]
[361411408,1747559432549,-450.0,0.00013698,2]
[361411409,1747559432559,-450.0,0.00013698,2]
[361411410,1747559432568,-450.0,0.00013698,2]
[361411411,1747559432581,-450.0,0.00013698,2]
[361411412,1747559432590,-450.0,0.00013698,2]
[361411413,1747559432601,-450.0,0.00013698,2]
[361411414,1747559432610,-450.0,0.00013698,2]
[361411415,1747559432620,-450.0,0.00013698,2]
[361411416,1747559432629,-450.0,0.00013698,2]
[361411417,1747559432638,-450.0,0.00013698,2]
[361411418,1747559432648,-450.0,0.00013698,2]
[361411419,1747559432657,-450.0,0.00013698,2]
[361411420,1747559432667,-450.0,0.00013698,2]
[361411421,1747559432676,-450.0,0.00013698,2]
[361411422,1747559432685,-450.0,0.00013698,2]
[361411423,1747559432695,-579.63921394,0.00013698,2]
[361411424,1747559432703,-450.0,0.00013698,2]
[361411425,1747559432713,-450.0,0.00013698,2]
[361411426,1747559432723,-450.0,0.00013698,2]
[361411427,1747559432733,-563.64835417,0.00013698,2]
[361411428,1747559432742,-450.0,0.00013698,2]
[361411429,1747559432751,-450.0,0.00013698,2]
[361411430,1747559432761,-450.0,0.00013698,2]
[361411431,1747559432771,-450.0,0.00013698,2]
[361411432,1747559432781,-450.0,0.00013698,2]
[361411433,1747559432793,-450.0,0.00013698,2]
[361411434,1747559432803,-450.0,0.00013698,2]
[361411435,1747559432812,-450.0,0.00013698,2]
[361411436,1747559432822,-450.0,0.00013698,2]
[361411437,1747559432831,-450.0,0.00013698,2]
[361411439,1747559432840,-450.0,0.00013698,2]
[361411441,1747559432850,-450.0,0.00013698,2]
[361411443,1747559432859,-450.0,0.00013698,2]
[361411445,1747559432868,-450.0,0.00013698,2]
[361411447,1747559432878,-450.0,0.00013698,2]
[361411448,1747559432890,-450.0,0.00013698,2]
[361411449,1747559432899,-251.27028166,0.00013698,2]
[361411450,1747559432909,-450.0,0.00013698,2]
[361411451,1747559432919,-775.46,0.00013698,2]
[361411452,1747559432930,-450.0,0.00013698,2]
[361411453,1747559432939,-450.0,0.00013698,2]
[361411454,1747559432948,-450.0,0.00013698,2]
[361411455,1747559432958,-450.0,0.00013698,2]
[361411456,1747559432968,-450.0,0.00013698,2]
[361411457,1747559432977,-450.0,0.00013698,2]
[361411458,1747559432988,-450.0,0.00013698,2]
[361411459,1747559432999,-450.0,0.00013698,2]
[361411460,1747559433008,-450.0,0.00013698,2]
[361411461,1747559433018,-450.0,0.00013698,2]
[361411462,1747559433027,-450.0,0.00013698,2]
[361411463,1747559433036,-450.0,0.00013698,2]
[361411464,1747559433046,-450.0,0.00013698,2]
[361411465,1747559433055,-450.0,0.00013698,2]
[361411466,1747559433065,-450.0,0.00013698,2]
[361411467,1747559433075,-450.0,0.00013698,2]
[361411468,1747559433084,-450.0,0.00013698,2]
[361411469,1747559433094,-580.82,0.00013698,2]
[361411470,1747559433104,-985.92,0.00013698,2]
[361411471,1747559433113,-450.0,0.00013698,2]
[361411472,1747559433122,-450.0,0.00013698,2]
[361411473,1747559433133,-619.73,0.00013698,2]
[361411474,1747559433143,-450.0,0.00013698,2]
[361411475,1747559433152,-450.0,0.00013698,2]
[361411476,1747559433162,-450.0,0.00013698,2]
[361411477,1747559433171,-450.0,0.00013698,2]
[361411478,1747559433181,-450.0,0.00013698,2]
[361411479,1747559433190,-450.0,0.00013698,2]
[361411480,1747559433201,-650.48,0.00013698,2]
[361411481,1747559433211,-450.0,0.00013698,2]
[361411482,1747559433221,-450.0,0.00013698,2]
[361411483,1747559433231,-450.0,0.00013698,2]
[361411484,1747559433240,-450.0,0.00013698,2]
[361411485,1747559433250,-450.0,0.00013698,2]
[361411486,1747559433259,-450.0,0.00013698,2]
[361411487,1747559433270,-450.0,0.00013698,2]
[361411488,1747559433281,-450.0,0.00013698,2]
[361411489,1747559433291,-450.0,0.00013698,2]
[361411490,1747559433300,-450.0,0.00013698,2]
[361411491,1747559433310,-450.0,0.00013698,2]
[361411492,1747559433319,-450.0,0.00013698,2]
[361411493,1747559433329,-547.25566605,0.00013698,2]
[361411494,1747559433338,-450.0,0.00013698,2]
[361411495,1747559433348,-450.0,0.00013698,2]
[361411496,1747559433359,-450.0,0.00013698,2]
[361411497,1747559433369,-450.0,0.00013698,2]
[361411498,1747559433380,-450.0,0.00013698,2]
[361411499,1747559433390,-450.0,0.00013698,2]
[361411500,1747559433400,-450.0,0.00013698,2]
[361411501,1747559433410,-450.0,0.00013698,2]
[361411502,1747559433420,-450.0,0.00013698,2]
[361411503,1747559433430,-450.0,0.00013698,2]
[361411504,1747559433441,-450.0,0.00013698,2]
[361411505,1747559433450,-450.0,0.00013698,2]
[361411506,1747559433459,-450.0,0.00013698,2]
[361411507,1747559433469,-450.0,0.00013698,2]
[361411508,1747559433478,-450.0,0.00013698,2]
[361411509,1747559433489,-328.77149452,0.00013698,2]
[361411510,1747559433498,-450.0,0.00013698,2]
[361411511,1747559433507,-450.0,0.00013698,2]
[361411512,1747559433517,-450.0,0.00013698,2]
[361411513,1747559433527,-450.0,0.00013698,2]
[361411514,1747559433536,-450.0,0.00013698,2]
[361411515,1747559433546,-450.0,0.00013698,2]
[361411516,1747559433556,-450.0,0.00013698,2]
[361411517,1747559433566,-450.0,0.00013698,2]
[361411518,1747559433576,-450.0,0.00013698,2]
[361411519,1747559433589,-450.0,0.00013698,2]
[361411520,1747559433598,-450.0,0.00013698,2]
[361411521,1747559433608,-450.0,0.00013698,2]
[361411522,1747559433619,-450.0,0.00013698,2]
[361411523,1747559433629,-450.0,0.00013698,2]
[361411524,1747559433638,-450.0,0.00013698,2]
[361411525,1747559433649,-450.0,0.00013698,2]
[361411526,1747559433659,-450.0,0.00013698,2]
[361411527,1747559433669,-450.0,0.00013698,2]
[361411528,1747559433678,-450.0,0.00013698,2]
[361411529,1747559433687,-450.0,0.00013698,2]
[361411530,1747559433850,-450.0,0.00013698,2]
[361411531,1747559433860,-450.0,0.00013698,2]
[361411532,1747559433869,-450.0,0.00013698,2]
[361411533,1747559433879,-450.0,0.00013698,2]
[361411534,1747559433889,-450.0,0.00013698,2]
[361411535,1747559433898,-450.0,0.00013698,2]
[361411536,1747559433908,-450.0,0.00013698,2]
[361411537,1747559433917,-450.0,0.00013698,2]
[361411538,1747559433926,-273.048059,0.00013699,2]
[361411539,1747559433936,-500.0,0.00013699,2]
[361411540,1747559433945,-500.0,0.00013699,2]
[361411541,1747559433954,-500.0,0.00013699,2]
[361411542,1747559433963,-500.0,0.00013699,2]
[361411543,1747559433972,-500.0,0.00013699,2]
[361411544,1747559433982,-426.14122314,0.00013699,2]
[361411545,1747559433991,-500.0,0.00013699,2]
[361411546,1747559434000,-500.0,0.00013699,2]
[361411547,1747559434011,-450.0,0.00013835,2]
[361411548,1747559434021,-450.0,0.00013835,2]
[361411549,1747559434031,-450.0,0.00013835,2]
[361411550,1747559434040,-450.0,0.00013835,2]
[361411551,1747559434050,-450.0,0.00013835,2]
[361411552,1747559434059,-450.0,0.00013835,2]
[361411553,1747559434069,-450.0,0.00013835,2]
[361411554,1747559434078,-450.0,0.00013835,2]
[361411555,1747559434087,-317.75383005,0.00013835,2]
[361411556,1747559434097,-450.0,0.00013835,2]
[361411557,1747559434106,-450.0,0.00013835,2]
[361411558,1747559434116,-508.53,0.00013835,2]
[361411559,1747559434125,-450.0,0.00013835,2]
[361411560,1747559434134,-450.0,0.00013835,2]
[361411561,1747559434143,-450.0,0.00013835,2]
[361411562,1747559434153,-450.0,0.00013835,2]
[361411563,1747559434162,-450.0,0.00013835,2]
[361411564,1747559434171,-450.0,0.00013835,2]
[361411565,1747559434180,-450.0,0.00013835,2]
[361411566,1747559434190,-450.0,0.00013835,2]
[361411567,1747559434199,-450.0,0.00013835,2]
[361411568,1747559434209,-450.0,0.00013835,2]
[361411569,1747559434218,-450.0,0.00013835,2]
[361411570,1747559434227,-450.0,0.00013835,2]
[361411571,1747559434236,-450.0,0.00013835,2]
[361411572,1747559434245,-450.0,0.00013835,2]
[361411573,1747559434254,-450.0,0.00013835,2]
[361411574,1747559434263,-450.0,0.00013835,2]
[361411575,1747559434273,-450.0,0.00013835,2]
[361411576,1747559434282,-450.0,0.00013835,2]
[361411577,1747559434291,-450.0,0.00013835,2]
[361411578,1747559434301,-450.0,0.00013835,2]
[361411579,1747559434310,-450.0,0.00013835,2]
[361411580,1747559434319,-450.0,0.00013835,2]
[361411581,1747559434328,-450.0,0.00013835,2]
[361411582,1747559434337,-450.0,0.00013835,2]
[361411583,1747559434347,-450.0,0.00013835,2]
[361411584,1747559434356,-450.0,0.00013835,2]
[361411585,1747559434365,-450.0,0.00013835,2]
[361411586,1747559434375,-450.0,0.00013835,2]
[361411587,1747559434384,-554.31,0.00013835,2]
[361411588,1747559434393,-775.46,0.00013835,2]
[361411589,1747559434402,-450.0,0.00013835,2]
[361411590,1747559434411,-450.0,0.00013835,2]
[361411591,1747559434420,-450.0,0.00013835,2]
[361411592,1747559434430,-450.0,0.00013835,2]
[361411593,1747559434440,-450.0,0.00013835,2]
[361411594,1747559434449,-450.0,0.00013835,2]
[361411595,1747559434459,-450.0,0.00013835,2]
[361411596,1747559434468,-450.0,0.00013835,2]
[361411597,1747559434478,-450.0,0.00013835,2]
[361411598,1747559434487,-450.0,0.00013835,2]
[361411599,1747559434496,-450.0,0.00013835,2]
[361411600,1747559434505,-450.0,0.00013835,2]
[361411601,1747559434514,-450.0,0.00013835,2]
[361411602,1747559434524,-450.0,0.00013835,2]
[361411603,1747559434534,-450.0,0.00013835,2]
[361411604,1747559434543,-450.0,0.00013835,2]
[361411605,1747559434552,-450.0,0.00013835,2]
[361411606,1747559434562,-580.82,0.00013835,2]
[361411607,1747559434571,-985.92,0.00013835,2]
[361411608,1747559434584,-450.0,0.00013835,2]
[361411609,1747559434593,-450.0,0.00013835,2]
[361411610,1747559434603,-619.73,0.00013835,2]
[361411611,1747559434612,-450.0,0.00013835,2]
[361411612,1747559434621,-450.0,0.00013835,2]
[361411613,1747559434632,-450.0,0.00013835,2]
[361411614,1747559434641,-450.0,0.00013835,2]
[361411615,1747559434651,-450.0,0.00013835,2]
[361411616,1747559434661,-450.0,0.00013835,2]
[361411617,1747559434671,-650.48,0.00013835,2]
[361411618,1747559434679,-450.0,0.00013835,2]
[361411619,1747559434688,-450.0,0.00013835,2]
[361411620,1747559434697,-450.0,0.00013835,2]
[361411621,1747559434706,-450.0,0.00013835,2]
[361411622,1747559434715,-450.0,0.00013835,2]
[361411623,1747559434724,-527.09890554,0.00013835,2]
[361411624,1747559434734,-450.0,0.00013835,2]
[361411625,1747559434743,-450.0,0.00013835,2]
[361411626,1747559434752,-450.0,0.00013835,2]
[361411627,1747559434762,-450.0,0.00013835,2]
[361411628,1747559434771,-450.0,0.00013835,2]
[361411629,1747559434780,-450.0,0.00013835,2]
[361411630,1747559434789,-598.36,0.00013835,2]
[361411631,1747559434797,-450.0,0.00013835,2]
[361411632,1747559434806,-450.0,0.00013835,2]
[361411633,1747559434815,-450.0,0.00013835,2]
[361411634,1747559434825,-450.0,0.00013835,2]
[361411635,1747559434835,-450.0,0.00013835,2]
[361411636,1747559434844,-450.0,0.00013835,2]
[361411637,1747559434853,-450.0,0.00013835,2]
[361411638,1747559434862,-450.0,0.00013835,2]
[361411639,1747559434874,-354.37580423,0.00013835,2]
[361411640,1747559434884,-450.0,0.00013835,2]
[361411641,1747559434894,-450.0,0.00013835,2]
[361411642,1747559434903,-450.0,0.00013835,2]
[361411643,1747559434913,-450.0,0.00013835,2]
[361411644,1747559434922,-450.0,0.00013835,2]
[361411645,1747559434932,-450.0,0.00013835,2]
[361411646,1747559434942,-450.0,0.00013835,2]
[361411647,1747559434951,-450.0,0.00013835,2]
[361411648,1747559434960,-450.0,0.00013835,2]
[361411649,1747559434970,-450.0,0.00013835,2]
[361411650,1747559434980,-450.0,0.00013835,2]
[361411651,1747559434990,-450.0,0.00013835,2]
[361411652,1747559434999,-450.0,0.00013835,2]
[361411653,1747559435008,-450.0,0.00013835,2]
[361411654,1747559435018,-450.0,0.00013835,2]
[361411655,1747559435028,-450.0,0.00013835,2]
[361411656,1747559435038,-450.0,0.00013835,2]
[361411657,1747559435047,-450.0,0.00013835,2]
[361411658,1747559435057,-450.0,0.00013835,2]
[361411659,1747559435068,-450.0,0.00013835,2]